Cogmind - Beta 16.1 @@@ ROGUE MODE // 2026.04.20 @ 20:37:17 Player: 57R4N63R Result: Self-destructed Performance ------------- Evolutions (1) 500 Regions Visited (2) 400 Robots Destroyed (8) 40 Value Destroyed (153) 153 Prototype IDs (0) 0 Alien Tech Used (0) 0 Bonus (0) 0 TOTAL SCORE: 1093 Bonus ------- None Cogmind --------- Core Integrity 388/400 Matter 202/300 Energy 86/100 System Corruption 0% Temperature Danger (404) Movement Flying (117) Ox1 Location -9/Materials Parts ------- > --- POWER (1) -------- (None) > --- PROPULSION (2) --- Flight Unit Flight Unit > --- UTILITY (4) ------ Signal Interpreter Seismic Detector Advanced Targeting Computer Hardened Medium Armor Plating > --- WEAPON (2) ------- Beam Rifle Hammer > --- INVENTORY (5) ---- Improved Heat Sink Beam Rifle Improved Grenade Launcher Improved Grenade Launcher Peak State ------------ > --- POWER ------------ Light Nuclear Core > --- PROPULSION ------- Flight Unit Flight Unit > --- UTILITY ---------- Signal Interpreter Seismic Detector Advanced Targeting Computer Hardened Medium Armor Plating > --- WEAPON ----------- Beam Rifle Hammer > --- INVENTORY -------- Improved Heat Sink Beam Rifle Improved Grenade Launcher Improved Grenade Launcher [Rating: 17] Favorites ----------- Power Light Nuclear Core Engine Ion Engine Power Core Light Nuclear Core Propulsion Flight Unit Leg Aluminum Leg Flight Unit Flight Unit Utility Seismic Detector Device Seismic Detector Storage Small Storage Unit Processor Signal Interpreter Protection Hardened Medium Armor Plating Weapon Hammer Energy Gun Beam Rifle Ballistic Gun Assault Rifle Impact Weapon Hammer Build | -11 -10 -9 ------- Run | Yrd Mat Mat Slots Evolved 2 | . . 2 Power . | . . . Propulsion . | . . . Utility 2 | . . 2 Weapon . | . . . Parts Attached 20 | 8 10 2 Power 2 | 1 1 . Engine 1 | 1 . . Core 1 | . 1 . Reactor . | . . . Propulsion 6 | 2 4 . Treads . | . . . Leg 2 | 2 . . Wheel . | . . . Hover . | . . . Flight 4 | . 4 . Utility 7 | 2 3 2 Device 3 | 1 2 . Storage 1 | 1 . . Processor 2 | . 1 1 Hackware . | . . . Protection 1 | . . 1 Artifact . | . . . Weapon 5 | 3 2 . Energy Gun 2 | 1 1 . Energy Cannon . | . . . Ballistic Gun 2 | 2 . . Ballistic Cannon . | . . . Launcher . | . . . Special Weapon . | . . . Impact Weapon 1 | . 1 . Slashing Weapon . | . . . Piercing Weapon . | . . . Special Melee Weapon . | . . . Unidentified Prototypes . | . . . Parts Lost 1 | . . 1 Power 1 | . . 1 Propulsion . | . . . Utility . | . . . Weapon . | . . . Highest Loss Streak 1 | . . 1 To Critical Strikes . | . . . Average Backups 3 | 1 4 3 Power . | . . . Propulsion . | . . . Utility . | . . 1 Weapon 2 | . 2 2 Tool/Special . | . . . Unused Backups 9 | . 3 6 Power 1 | . 1 . Propulsion 2 | . 2 . Utility 1 | . . 1 Weapon 5 | . . 5 Tool/Special . | . . . Average Slot Usage (%) 96 | . 95 97 Engine 2 | . 3 . Core 10 | . 10 11 Leg 7 | . 9 . Flight 19 | . 18 22 Device 13 | . 14 11 Processor 12 | . 10 20 Protection 2 | . . 9 Energy Gun 8 | . 7 11 Ballistic Gun 7 | . 10 . Impact Weapon 10 | . 10 11 Peak Build Rating 17 | 7 12 17 Average Rating 10 | 4 8 16 On Entrance 6 | . 7 11 Avg Prop Armor Cover (%) 10 | . 10 . Naked Turns . | . . . Heaviest Build 19 | 15 11 19 Greatest Support 20 | 20 20 8 Greatest Overweight (x) 2 | . 2 2 Average Overweight (x) . | . . 1 Largest Inventory Capacity 8 | 8 5 5 Average Capacity 5 | 7 5 5 Most Carried 5 | 5 5 4 Average Carried 4 | 2 4 3 Final Capacity 8 | 8 5 5 Final Carried 5 | 2 5 4 Class Distribution -------------------- 63% | Scavenger-Mutant 36% | Mutant Dominant Class ---------------- Scavenger-Mutant | -10/Materials Scavenger-Mutant | -9/Materials Resources | -11 -10 -9 ----------- Run | Yrd Mat Mat Matter Collected 358 | 226 132 . Remotely . | . . . Salvage Created 254 | 22 190 42 Parts 19 | 5 12 2 Haulers Intercepted . | . . . Recyclers Shooed 1 | . 1 . Parts Field Recycled . | . . . Retrieved Matter . | . . . Parts Self-Destructed . | . . . Prevented . | . . . Parts Restored . | . . . Kills | -11 -10 -9 ------- Run | Yrd Mat Mat Combat Hostiles Destroyed 5 | . 4 1 Melee 3 | . 3 . Guns 2 | . 1 1 Classes Destroyed 5 | 1 4 . Builder 1 | . 1 . Tunneler 1 | 1 . . Recycler 1 | . 1 . Swarmer 2 | . 2 . Grunt 3 | . 2 1 Best Kill Streak 4 | 1 4 1 Combat Bots Only 2 | . 2 1 Max Kills in Single Turn 1 | 1 1 1 Gunslinging . | . . . Exploded . | . . . Melee 1 | . 1 . Uniques/NPCs Destroyed . | . . . Combat | -11 -10 -9 -------- Run | Yrd Mat Mat Hostile Shots Fired 41 | . 23 18 Missed 14 | . 7 7 Hits 27 | . 16 11 Projectile 27 | . 16 11 Damage Taken 277 | . 154 123 Core 54 | . 42 12 Absorbed by Shields . | . . . Core Remaining (%) 91 | 100 83 . Volleys Fired 21 | 2 5 14 Largest 2 | 2 1 1 Hottest 60 | 60 20 56 Shots Fired 23 | 4 5 14 Gun 23 | 4 5 14 Cannon . | . . . Launcher . | . . . Special . | . . . Kinetic 7 | 2 5 . Thermal 14 | . . 14 Explosive . | . . . Electromagnetic 2 | 2 . . Robot Hit Streak 10 | 2 4 10 Robot Miss Streak 2 | 2 1 2 Penetration Max . | . . . Secondary Targets . | . . . Shots Hit Robots 23 | 2 12 9 Core Hits 7 | 1 4 2 Critical Kills 2 | . 2 . Critical Parts Destroyed . | . . . Critical Strikes 2 | . 2 . Destroy 1 | . 1 . Smash 1 | . 1 . Melee Attacks 14 | . 14 . Impact 14 | . 14 . Slashing . | . . . Piercing . | . . . Sneak Attacks 2 | . 2 . Combat Hostiles . | . . . Follow-up Attacks . | . . . Damage Inflicted 446 | 26 275 145 Guns 226 | 26 55 145 Cannons . | . . . Explosions . | . . . Melee 220 | . 220 . Ramming . | . . . Kinetic 69 | 14 55 . Thermal 145 | . . 145 Explosive . | . . . Electromagnetic 12 | 12 . . Impact 220 | . 220 . Slashing . | . . . Piercing . | . . . Highest Corruption . | . . . Average Corruption . | . . . Corruption Purged . | . . . Corruption Blocked . | . . . Overload Shots . | . . . Overflow Damage 25 | . 25 . Projectiles . | . . . Explosions . | . . . Melee 25 | . 25 . Knockbacks . | . . . Impact . | . . . Kinetic . | . . . Secondary . | . . . Self-Inflicted Damage . | . . . Shots . | . . . Rammed . | . . . Targets Rammed . | . . . Kicked . | . . . Crushed . | . . . Highest Temperature 404 | . . 404 Average Temperature 208 | . . 208 Received Heat Transfer 105 | . 39 66 Effects 3 | . . 3 Energy Bleed 2 | . . 2 Short Circuit 1 | . . 1 Siege Activations . | . . . Martial Activations . | . . . Shielding Activations . | . . . Robots Disrupted . | . . . Combat Hostiles . | . . . Robots Corrupted 1 | . 1 . Combat Hostiles . | . . . Parts Fried 4 | . 4 . Impact Corruptions 3 | . 3 . Robots Melted . | . . . Combat Hostiles . | . . . Parts Melted 1 | . . 1 Heat Transferred 370 | . . 370 Parts Sabotaged . | . . . Parts Stolen . | . . . Parts Stripped . | . . . Power Chain Reactions . | . . . Alert | -11 -10 -9 ------- Run | Yrd Mat Mat Maximum Alert Level . | . . . Low Security (%) 100 | 100 100 100 Level 1 . | . . . Level 2 . | . . . Level 3 . | . . . Level 4 . | . . . Level 5 . | . . . High Security . | . . . Max Security . | . . . Peak Influence 150 | 5 150 30 Initial . | . . . Average 30 | . 44 1 Influence Increases 244 | 5 209 30 Destroy 0b10 Robot/C 100 | . 80 20 Destroy 0b10 Robot/NC 15 | 5 10 . Destroy Leader 30 | . 20 10 Successful Hack 9 | . 9 . Lose Combat Pursuer 90 | . 90 . Influence Decreases 234 | 5 209 20 Time Decay 224 | 5 209 10 Lost Part 10 | . . 10 Squads Dispatched 2 | . 1 1 Investigation 1 | . 1 . Extermination . | . . . Reinforcement 1 | . . 1 Assault . | . . . Garrison . | . . . Intercept . | . . . Searches Triggered . | . . . Construction Impeded . | . . . Haulers Reinforced . | . . . Active Scanning Responses . | . . . Cargo Convoy Interrupts . | . . . Stealth | -11 -10 -9 --------- Run | Yrd Mat Mat Distress Signals 1 | . . 1 Communications Jammed . | . . . Distress Signals . | . . . Times Spotted 17 | . 12 5 Peak Tracking Total 4 | . 3 4 Tactical Retreats 2 | . 2 . Traps | -11 -10 -9 ------- Run | Yrd Mat Mat Traps Triggered 1 | . 1 . Indirectly . | . . . Trap Hack Attempts . | . . . Triggered . | . . . Disarmed . | . . . Reprogrammed . | . . . Reused . | . . . Traps Extracted . | . . . Installed . | . . . Triggered . | . . . Machines | -11 -10 -9 ---------- Run | Yrd Mat Mat Machines Disabled . | . . . Max in Single Turn . | . . . Machines Repaired . | . . . Machines Dismantled . | . . . Machines Sabotaged . | . . . Overloaded Fab Kills . | . . . Hacking | -11 -10 -9 --------- Run | Yrd Mat Mat Machines Accessed 4 | . 4 . Terminals 4 | . 4 . Fabricators . | . . . Repair Stations . | . . . Recycling Units . | . . . Scanalyzers . | . . . Garrison Access . | . . . Total Hacks 4 | . 4 . Successful 4 | . 4 . Failed . | . . . Catastrophic . | . . . Database Lockouts . | . . . Manual . | . . . Terminals 4 | . 4 . Fabricators . | . . . Repair Stations . | . . . Recycling Units . | . . . Scanalyzers . | . . . Garrison Access . | . . . Terminal Hacks 4 | . 4 . Emergency Access Points 2 | . 2 . Locate Traps 1 | . 1 . Zone Layout 1 | . 1 . Fabricator Hacks . | . . . Repair Station Hacks . | . . . Recycling Unit Hacks . | . . . Scanalyzer . | . . . Garrison Access Hacks . | . . . Unauthorized Hacks . | . . . Terminals . | . . . Fabricators . | . . . Repair Stations . | . . . Recycling Units . | . . . Scanalyzers . | . . . Garrison Access . | . . . Data Cores Recovered . | . . . Used . | . . . Hacking Detections . | . . . Full Trace Events . | . . . Feedback Events . | . . . Feedback Blocked . | . . . Robot Schematics Acquired . | . . . Robots Built . | . . . Authchips . | . . . Time . | . . . Total Robot Build Rating . | . . . Part Schematics Acquired . | . . . Parts Built . | . . . Authchips . | . . . Time . | . . . Total Part Build Rating . | . . . Part Studies Acquired . | . . . Parts Repaired . | . . . Time . | . . . Parts Recycled . | . . . Recycled Matter . | . . . Retrieved Matter . | . . . Retrieved Components . | . . . Parts Scanalyzed . | . . . Part Schematics Acquired . | . . . Parts Damaged . | . . . Bothacking | -11 -10 -9 ------------ Run | Yrd Mat Mat Used RIF Installer . | . . . Robots Hacked . | . . . Non-combat . | . . . Combat . | . . . Robot Hacks Applied . | . . . Relay Couplers Released . | . . . Fabnet Peak Effective % . | . . . Robots Rewired . | . . . Allies Hacked . | . . . Hacks Repelled . | . . . Allies | -11 -10 -9 -------- Run | Yrd Mat Mat Total Allies . | . . . Largest Group . | . . . Highest-Rated Group . | . . . Highest-Rated Ally . | . . . Total Orders . | . . . Ally Attacks . | . . . Total Damage . | . . . Kills . | . . . Allies Corrupted . | . . . Allies Melted . | . . . Intel | -11 -10 -9 ------- Run | Yrd Mat Mat Active Infowar (turns) 854 | 19 631 204 Sensors 1 | . 1 . Seismic 853 | 19 630 204 Robot Analysis Total . | . . . Derelict Logs Recovered . | . . . Drone Launches . | . . . Drone Recoveries . | . . . Exploration | -11 -10 -9 ------------- Run | Yrd Mat Mat Turns Passed 916 | 78 634 204 Spaces Moved 556 | 58 411 87 Core 20 | 20 . . Treads . | . . . Legs 163 | 38 125 . Wheels . | . . . Hover . | . . . Flight 373 | . 286 87 Fastest Speed 37 | 50 37 117 Average Speed 126 | 95 116 193 Slowest Speed 210 | 120 210 197 Overloaded Moves . | . . . Propulsion Burnouts . | . . . Robots Hopped . | . . . Potential Cave-ins . | . . . Cave-ins Triggered . | . . . Exploration Rate (%) 21 | 3 53 7 Regions Visited 2 Branch Regions . Pre-discovered Areas . | . . . Known Exits Taken 1 | . 1 . Unknown Exits Taken 1 | 1 . . Scrap Searched . | . . . Spaces Dug . | . . . Terrain Destroyed . | . . . Melee . | . . . Projectile . | . . . AOE . | . . . Terrain Rammed . | . . . Walls Destroyed . | . . . Machines Disabled . | . . . Actions | -11 -10 -9 --------- Run | Yrd Mat Mat Total 724 | 76 538 110 Wait 60 | . 60 . Move 554 | 57 410 87 Hop . | . . . Pick Up 32 | 9 19 4 Fast Attach . | . . . Attach 12 | 7 3 2 Detach . | . . . Swap 12 | 1 11 . Drop 19 | . 16 3 Fire 21 | 2 5 14 Melee 14 | . 14 . Ram . | . . . Kick . | . . . Crush . | . . . Escape Stasis . | . . . Rewire . | . . . Trap . | . . . Miscellaneous . | . . . Route ------- -11/Scrapyard -10/Materials -9/Materials History --------- Turn | Location | Event 22 | -11/Scrapyard | Discovered new exit (range 16) 79 | -11/Scrapyard | Entered Materials 316 | -10/Materials | Build established: Mutant 626 | -10/Materials | Build established: Scavenger-Mutant 702 | -10/Materials | Discovered new exit (range 3) 711 | -10/Materials | Identified exit to Materials 713 | -10/Materials | Entered another Materials area 713 | -9/Materials | Evolved 2 slots: Utility x2 917 | -9/Materials | Self-destructed Last Messages --------------- 00713_ Dropped Targeting Computer. 00714_ Dropped Rocket Launcher. 00720_ Acquired Hrd. Medium Armor Plating. 00724_ Acquired Adv. Targeting Computer. 00732_ Acquired Imp. Grenade Launcher. 00745_ R-06 Scavenger collects Rocket Launcher. 00748_ R-06 Scavenger collects Targeting Computer. 00752_ R-06 Scavenger collects Rocket Launcher. 00864_ ALERT: Hostiles spotted, dispatching reinforcements to Terminal M009. 00887_ W-16 Scout sends out distress signal. 00888_ K-01 Serf collects debris. 00903_ Aluminum Leg melted. 00903_ G-34 Mercenary destroyed. 00908_ Overheating: Energy bleed (-23). 00913_ Overheating: Energy bleed (-25). 00913_ Lgt. Nuclear Core destroyed. 00917_ Beam Rifle broken. 00917_ Overheating: Short circuit. Map ----- +----------------------------------------------------+ | | | | | | | | | | | | | | | | | ?????????????????????????????????????????????????? | | ?????????????????????????????????????????????????? | | ?????????????????????????????????????????????????? | | ?????????????????????????????????????????????????? | | ?????????????????????????????????????????????????? | | ???????????????????????#####?????????????????????? | | ?????????????#####?????# ?????????????????????? | | ############## !!#?????" ????????????????????? | | !#????? ?????????????????????? | | ########## !#?????" ?????????????????????? | | ?????????# !!#?????" ""?????? #????????????? | | ?????????# #???### """"" #????????????? | | ?????????# ]]#???#"" """"" !!!#????????????? | | ?????????# #####????"T """"" !!!#????????????? | | ????????## ##????????" """ !! #????????????? | | ????????# ########## #????????????? | | ????????# m #????????????? | | ????????# " w @ t + ""?????????? | | ????????# ######???????????????? | | ????????# ########### * #????????????????????? | | ????????#######?????????# % #????????????????????? | | ????????????????????????# [ #????????????????????? | | ????????????????????????#g +????????????????????? | | ????????????????????????# #????????????????????? | | ????????????????????????# +????????????????????? | | ???????????????????????? #????????????????????? | | ????????????????????????##+##????????????????????? | | ?????????????????????????????????????????????????? | | ?????????????????????????????????????????????????? | | ?????????????????????????????????????????????????? | | ?????????????????????????????????????????????????? | | ?????????????????????????????????????????????????? | | ?????????????????????????????????????????????????? | | ?????????????????????????????????????????????????? | | ?????????????????????????????????????????????????? | | ?????????????????????????????????????????????????? | | ?????????????????????????????????????????????????? | | ?????????????????????????????????????????????????? | | ?????????????????????????????????????????????????? | | ?????????????????????????????????????????????????? | | ?????????????????????????????????????????????????? | | ?????????????????????????????????????????????????? | +----------------------------------------------------+ Best States ------------- Heat Dissipation 28 Energy Generation 14 Energy Capacity 250 Matter Stores 276 Matter Capacity 300 Sight Range 16 Terrain Scan Density 10 Armor Coverage 225 Evasion (%) 55 Targeting Accuracy 8 Item Schematics ----------------- None Robot Schematics ------------------ None Fabricated ------------ Nothing Repaired ---------- Nothing Studied --------- None Alien Tech Used ----------------- None Achievements -------------- Power Corrupts Challenges ------------ None Game ------ Seed HackingCoolantStreamer Manual? 0 Play Time 00:15:36 Cumulative 3.1 hours Start 2026.04.20 @ 20:23:13 End 2026.04.20 @ 20:37:17 Sessions 1 Manual Loads 0 Difficulty Rogue Special Mode None Game No. 11 Rogue 11 Adventurer 0 Explorer 0 Win Type - Total 0 Types 0/0/0/0/0/0/0/0/0/0 Lore% 1 Gallery% 7 Achievement% 8 Wizard Run 0 Options --------- Layout 1 ASCII 0 Keyboard 0 Movement Mouse Keybinds 0 Fullscreen 1 Font 24/Smallcaps Map View 50x35 Zoom Use 25% Tactical HUD 1 Map Filters NONE Filters NONE Steam 1 RUN: d5874ac1-25cf-445c-a5f2-086fd299a678